bitfinex/quotes_SOLUSD_20240628
["timestamp","ask_amount","ask_price","bid_price","bid_amount"]
[1719536775068,15.46,147.82,147.79,6.0495]
[1719536775372,15.46,147.81,147.79,6.0495]
[1719536776260,6.7645,147.83,147.79,6.0495]
[1719536776455,15.46,147.81,147.79,6.0495]
[1719536777371,16.9085,147.86,147.75,23.2046]
[1719536777661,15.46,147.79,147.75,23.2046]
[1719536777841,15.46,147.79,147.76,6.7673]
[1719536778262,15.46,147.8,147.77,6.7671]
[1719536778862,15.46,147.8,147.78,6.7667]
[1719536779760,15.46,147.81,147.78,6.7667]
[1719536780661,15.46,147.81,147.77,23.6848]
[1719536781456,15.46,147.8,147.77,23.6848]
[1719536781657,31.5947,147.84,147.74,15.8124]
[1719536781852,15.46,147.75,147.71,13.3706]
[1719536782156,15.46,147.72,147.69,23.697]
[1719536782361,16.1347,147.78,147.69,23.697]
[1719536782548,15.46,147.74,147.69,16.9262]
[1719536782749,15.46,147.75,147.72,6.7695]
[1719536783349,15.46,147.75,147.71,6.7698]
[1719536783551,15.46,147.75,147.69,32.3862]
[1719536783552,15.46,147.73,147.7,6.7703]
[1719536783757,15.46,147.77,147.67,22.7332]
[1719536783938,15.46,147.71,147.67,22.7332]
[1719536784143,15.46,147.7,147.67,22.7332]
[1719536784967,15.46,147.7,147.67,29.5048]
[1719536785840,15.46,147.7,147.68,6.7712]
[1719536786045,6.7683,147.75,147.7,6.7704]
[1719536786243,33.0522,147.78,147.71,6.77]
[1719536786244,15.46,147.74,147.71,6.77]
[1719536786444,15.46,147.74,147.7,6.7703]
[1719536786749,15.46,147.73,147.7,6.7703]
[1719536790963,15.46,147.71,147.63,23.0239]
[1719536791169,15.46,147.68,147.65,6.7727]
[1719536791853,15.46,147.68,147.66,6.7722]
[1719536792174,15.46,147.69,147.66,6.7722]
[1719536792671,6.7696,147.72,147.67,6.7715]
[1719536792851,15.46,147.71,147.67,6.7715]
[1719536793249,78.7587,147.77,147.68,6.7713]
[1719536793468,15.46,147.71,147.68,6.7713]
[1719536794663,6.7692,147.73,147.68,6.7713]
[1719536795651,6.7691,147.73,147.68,6.7712]
[1719536797353,30.89,147.76,147.67,16.9289]
[1719536797668,6.7708,147.7,147.65,6.7726]
[1719536797973,6.7706,147.7,147.66,6.7723]
[1719536798154,30.89,147.73,147.67,6.7718]
[1719536798155,6.7696,147.72,147.67,6.7718]
[1719536798663,6.7696,147.72,147.67,6.7715]
[1719536800382,6.7696,147.72,147.68,6.7713]
[1719536800583,6.7692,147.73,147.69,6.7708]
[1719536800756,6.7687,147.74,147.69,6.7708]
[1719536802378,6.7691,147.73,147.69,6.7708]
[1719536802673,6.7687,147.74,147.69,6.7708]
[1719536803768,6.7678,147.76,147.71,6.77]
[1719536803957,6.7682,147.75,147.71,6.77]
[1719536804163,6.7686,147.75,147.7,16.9258]
[1719536804598,6.7677,147.77,147.7,16.9258]
[1719536804880,6.7681,147.76,147.71,6.7696]
[1719536805775,6.7673,147.77,147.72,6.7695]
[1719536806160,6.7669,147.78,147.73,6.7689]
[1719536806581,6.7672,147.77,147.73,6.7689]
[1719536807267,63.9333,147.82,147.74,16.9211]
[1719536807669,6.7669,147.78,147.74,23.6895]
[1719536807860,6.7669,147.78,147.74,16.9211]
[1719536811485,6.7669,147.78,147.74,23.6896]
[1719536811658,63.9333,147.82,147.74,23.6896]
[1719536811867,6.7662,147.8,147.75,6.7681]
[1719536812173,6.7662,147.8,147.76,6.7676]
[1719536812380,6.7654,147.82,147.77,6.7671]
[1719536812562,47.7998,147.85,147.77,6.7671]
[1719536812563,6.7654,147.81,147.77,6.7671]
[1719536812758,6.7654,147.81,147.76,6.7675]
[1719536813183,6.7654,147.81,147.77,6.7672]
[1719536813381,6.7651,147.82,147.77,6.7672]
[1719536814091,6.7654,147.81,147.77,6.7672]
[1719536814277,6.7654,147.81,147.76,23.6863]
[1719536814481,6.7659,147.8,147.76,16.9188]
[1719536814690,6.7659,147.8,147.76,23.6864]
[1719536816588,15.42,147.8,147.76,23.6864]
[1719536816897,6.7655,147.81,147.76,23.6864]
[1719536817189,15.42,147.8,147.76,16.9188]
[1719536817392,6.7654,147.81,147.76,16.9188]
[1719536817602,15.42,147.8,147.76,16.9188]
[1719536817778,15.42,147.8,147.76,23.6863]
[1719536818565,15.42,147.8,147.78,16.9165]
[1719536819217,6.765,147.82,147.78,16.9165]
[1719536819382,15.42,147.81,147.78,16.9165]
[1719536819701,15.42,147.81,147.77,6.7671]
[1719536819897,15.42,147.8,147.77,6.7671]
[1719536820778,15.42,147.81,147.78,6.7667]
[1719536821273,6.7645,147.83,147.78,6.7667]
[1719536821476,15.42,147.83,147.79,16.9152]
[1719536822075,15.7615,147.86,147.79,16.9152]
[1719536822274,6.7637,147.85,147.8,6.7658]
[1719536822495,16.9075,147.87,147.78,6.0887]
[1719536822696,22.185,147.82,147.78,6.0887]
[1719536822884,15.42,147.82,147.79,6.7662]
[1719536823473,15.42,147.82,147.78,29.7718]
[1719536823677,6.7647,147.83,147.78,29.7718]
[1719536823977,15.42,147.82,147.78,29.7718]
[1719536824810,15.42,147.82,147.78,23.0052]
[1719536824981,15.42,147.82,147.73,6.789]
[1719536824982,15.42,147.79,147.75,23.6878]
[1719536825298,15.42,147.78,147.75,23.6878]
[1719536826492,15.42,147.77,147.73,21.1223]
[1719536826700,15.42,147.77,147.75,6.7678]
[1719536827302,15.42,147.77,147.76,6.7677]
[1719536827701,15.42,147.77,147.74,16.9211]
[1719536828780,15.42,147.77,147.75,6.7677]
[1719536828978,15.42,147.78,147.75,6.7677]
[1719536829587,15.42,147.79,147.75,6.7677]
[1719536829987,78.1241,147.84,147.76,16.9188]
[1719536830198,15.42,147.81,147.77,6.7669]
[1719536830609,15.42,147.81,147.78,6.7667]
[1719536831506,15.42,147.81,147.77,6.7672]
[1719536831895,6.7651,147.82,147.77,6.7672]
[1719536832118,15.42,147.81,147.78,6.7667]
[1719536832311,6.7651,147.82,147.76,23.6861]
[1719536832623,22.1854,147.81,147.76,23.6861]
[1719536832788,78.1241,147.84,147.76,23.6861]
[1719536832789,15.42,147.82,147.79,23.682]
[1719536832992,22.185,147.82,147.78,6.7666]
[1719536833311,15.42,147.81,147.77,6.7671]
[1719536833493,15.42,147.81,147.78,6.7668]
[1719536834582,15.42,147.81,147.76,16.9186]
[1719536834583,6.7646,147.83,147.79,6.7663]
[1719536834779,15.42,147.82,147.79,6.7663]
[1719536835791,15.42,147.82,147.78,23.6832]
[1719536837007,15.42,147.82,147.79,6.7663]
[1719536838308,6.7646,147.83,147.79,6.7663]
[1719536838512,15.42,147.82,147.79,6.7663]
[1719536840413,15.42,147.83,147.79,6.7663]
[1719536840791,6.7645,147.83,147.79,6.7663]
[1719536841115,15.42,147.82,147.79,6.7663]
[1719536845892,22.1845,147.83,147.79,6.7663]
[1719536847110,6.7637,147.85,147.8,23.6801]
[1719536847316,22.1837,147.85,147.8,23.6801]
[1719536847502,22.1837,147.85,147.8,39.1001]
[1719536847910,22.1837,147.85,147.81,6.7653]
[1719536848405,15.42,147.85,147.81,6.7653]
[1719536850932,6.7633,147.86,147.81,6.7653]
[1719536851214,15.42,147.85,147.81,6.7653]
[1719536851920,6.7633,147.86,147.82,6.7648]
[1719536852127,22.1833,147.86,147.82,6.7648]
[1719536854652,0.8479656,147.88,147.83,1.35281067]
[1719536854798,0.8479656,147.88,147.85,6.7632]
[1719536855301,7.6102656,147.88,147.84,16.9096]
[1719536855504,15.42,147.87,147.83,22.8765]
[1719536855725,15.42,147.87,147.84,6.764]
[1719536856306,15.42,147.87,147.83,39.7875]
[1719536857332,0.8479656,147.88,147.85,6.6345]
[1719536857628,16.2185,148.0,147.92,16.9007]
[1719536857819,6.7576,147.99,147.93,6.7598]
[1719536858123,15.42,147.95,147.93,6.7598]
[1719536858526,15.42,147.95,147.92,23.661]
[1719536858709,15.42,147.95,147.93,6.7599]
[1719536859327,16.2185,148.0,147.92,16.9007]
[1719536859517,15.42,147.96,147.92,16.9007]
[1719536860715,15.42,147.96,147.93,6.7598]
[1719536861832,6.758,147.98,147.93,6.7598]
[1719536862134,15.42,147.96,147.93,6.7598]
[1719536862331,6.7576,147.99,147.93,1.35174956]
[1719536862524,6.7576,147.99,147.94,6.7593]
[1719536862725,22.1776,147.98,147.93,8.11164956]
[1719536862925,22.1776,147.98,147.93,6.7599]
[1719536863329,16.2185,148.0,147.91,6.1995]
[1719536863534,6.7589,147.96,147.91,12.9603]
[1719536863740,6.7589,147.96,147.92,6.7603]
[1719536863741,15.42,147.96,147.92,6.7603]
[1719536864845,22.1786,147.96,147.92,6.7603]
[1719536865646,15.42,147.96,147.92,6.7603]
[1719536866443,22.1782,147.97,147.93,6.7599]
[1719536867132,16.2185,148.0,147.94,6.7594]
[1719536867322,15.42,147.98,147.94,6.7594]
[1719536867528,22.1775,147.99,147.95,1.35161539]
[1719536867834,15.42,147.97,147.93,16.8988]
[1719536868147,22.1784,147.97,147.93,16.8988]
[1719536868451,6.7584,147.97,147.93,16.8988]
[1719536868837,22.1777,147.98,147.93,23.6586]
[1719536869040,0.8479656,148.03,147.95,16.897]
[1719536869229,15.42,148.0,147.95,16.897]
[1719536869427,15.42,148.01,147.97,6.7578]
[1719536869641,15.42,148.01,147.95,16.897]
[1719536869833,15.42,147.97,147.94,15.0229]
[1719536870036,15.42,147.97,147.91,23.1006]
[1719536870037,15.42,147.96,147.92,6.7602]
[1719536870429,6.7585,147.97,147.92,6.7602]
[1719536870631,39.8536656,148.03,147.91,6.1995]
[1719536870851,15.42,147.92,147.88,6.6295]
[1719536871039,15.438,147.96,147.86,15.045]
[1719536871345,15.42,147.9,147.86,21.8077]
[1719536871937,15.42,147.9,147.87,6.7626]
[1719536872340,15.42,147.9,147.86,21.8081]
[1719536872539,15.42,147.9,147.87,6.7625]
[1719536872853,6.7605,147.92,147.87,6.7625]
[1719536873742,16.8991,147.94,147.86,15.045]
[1719536874048,6.7605,147.92,147.87,6.7626]
[1719536875932,30.81,147.95,147.88,6.762]
[1719536876135,6.7602,147.93,147.87,23.6687]
[1719536877156,6.7602,147.93,147.88,6.7622]
[1719536877344,6.7605,147.92,147.87,23.6688]
[1719536878045,6.76,147.93,147.88,6.7622]
[1719536878439,6.7604,147.92,147.87,23.6687]
[1719536881462,30.81,147.95,147.87,16.9062]
[1719536881463,6.7609,147.91,147.87,16.9062]
[1719536882378,16.901,147.92,147.82,16.527]
[1719536882658,30.81,147.9,147.82,16.527]
[1719536882964,6.7635,147.86,147.82,16.527]
[1719536883459,6.7637,147.85,147.81,6.2346]
[1719536883666,6.7632,147.86,147.81,13.0]
[1719536883874,47.7139,147.9,147.81,6.2346]
[1719536884168,6.7618,147.89,147.84,6.764]
[1719536885553,6.7623,147.88,147.82,16.9119]
[1719536885739,32.335,147.96,147.89,6.7617]
[1719536885943,15.438,147.96,147.9,6.7612]
[1719536886162,6.7593,147.95,147.9,6.7612]
[1719536886350,6.7595,147.94,147.89,6.7617]
[1719536886749,6.76,147.93,147.88,29.9022]
[1719536888154,6.7596,147.94,147.89,6.7617]
[1719536889353,6.7596,147.94,147.89,8.11380981]
[1719536889752,6.7591,147.95,147.9,6.7613]
[1719536891063,52.9322,147.99,147.88,23.1401]
[1719536891271,6.7595,147.94,147.89,6.7617]
[1719536891474,52.9322,147.99,147.88,23.1401]
[1719536891765,6.7595,147.94,147.89,8.11341096]
[1719536891963,6.7595,147.94,147.89,6.7613]
[1719536894170,52.9322,147.99,147.89,6.7613]
[1719536894372,30.81,147.96,147.88,23.1401]
[1719536895168,6.7595,147.94,147.9,6.7613]
[1719536895688,6.7591,147.95,147.9,6.7613]
[1719536896263,51.5139656,148.03,147.91,34.76911112]
[1719536896559,6.7573,147.99,147.94,6.7594]
[1719536896860,6.7573,147.99,147.93,16.8994]
[1719536896861,6.7578,147.98,147.93,23.6592]
[1719536897479,6.7573,147.99,147.94,8.11111909]
[1719536897873,6.7573,147.99,147.94,6.7594]
[1719536898184,6.7573,147.99,147.94,8.11111915]
[1719536898396,6.7573,147.99,147.95,6.7589]
[1719536898598,6.7573,147.99,147.94,1.35171915]
[1719536899091,6.7573,147.99,147.94,8.11081915]
[1719536900259,6.7577,147.98,147.94,1.35171915]
[1719536900874,6.757,148.0,147.95,13.2929]
[1719536903992,31.6579656,148.03,147.96,8.10974387]
[1719536904575,31.6579656,148.03,147.95,23.4307]
[1719536904576,0.8479656,148.03,147.97,8.10944609]
[1719536904791,6.7558,148.02,147.97,8.10944609]
[1719536905167,7.6033656,148.03,147.98,6.7575]
[1719536905368,7.6033656,148.03,147.99,1.35128326]
[1719536905571,0.8479656,148.03,147.99,8.10838326]
[1719536905999,0.8479656,148.03,147.99,16.8926]
[1719536906294,7.6033656,148.03,147.99,16.8926]
[1719536907585,7.6033656,148.03,147.99,23.6498]
[1719536907897,0.8479656,148.03,147.99,23.6498]
[1719536908765,0.8479656,148.03,148.0,6.7565]
[1719536909909,0.8479656,148.03,148.0,8.10756059]
[1719536910800,0.8479656,148.03,148.01,1.35100153]
[1719536911591,0.8479656,148.03,148.0,6.7565]
[1719536915083,0.8479656,148.03,147.99,16.8926]
[1719536915284,16.2179656,148.03,147.99,23.6496]
[1719536915487,16.2179656,148.03,147.97,31.9972]
[1719536915690,22.1258,148.02,147.97,23.385]
[1719536916100,15.37,148.02,147.98,6.7575]
[1719536916293,15.37,148.02,147.99,6.7572]
[1719536916818,22.1259,148.02,147.98,6.7575]
[1719536916984,22.1259,148.02,147.97,23.3852]
[1719536917189,22.126,148.02,147.97,23.3852]
[1719536917488,22.126,148.02,147.98,1.35125545]
[1719536917888,0.8479656,148.03,147.98,16.8933]
[1719536918089,22.9733656,148.03,147.98,23.6506]
[1719536918520,6.7558,148.02,147.98,23.6506]
[1719536918722,22.1258,148.02,147.98,16.8933]
[1719536919088,7.6034656,148.03,147.98,23.6509]
[1719536919314,6.7561,148.02,147.98,16.8933]
[1719536919517,15.37,148.01,147.98,16.8933]
[1719536919802,15.37,148.02,147.98,16.8933]
[1719536920206,16.2179656,148.03,147.98,16.8933]
[1719536920701,22.9733656,148.03,147.98,23.6506]
[1719536922126,15.37,148.02,147.97,16.6272]
[1719536922298,15.37,148.0,147.97,16.6272]
[1719536922484,0.8479656,148.03,147.97,16.6272]
[1719536922804,15.37,148.0,147.97,23.3852]
[1719536923185,15.37,148.0,147.98,6.7576]
[1719536924285,15.37,148.01,147.98,6.7576]
[1719536925198,0.8479656,148.03,147.99,6.7571]
[1719536925508,15.37,148.02,147.99,6.7571]
[1719536925804,16.2179656,148.03,148.0,6.7566]
[1719536927007,0.8479656,148.03,148.0,6.7566]
[1719536927207,16.2179656,148.03,148.0,6.7566]
[1719536927714,16.2179656,148.03,147.99,6.757]
[1719536928692,16.2179656,148.03,148.01,6.7561]
[1719536928900,0.8479656,148.03,148.0,16.8914]
[1719536929100,16.2179656,148.03,148.0,16.8914]
[1719536930112,0.8479656,148.03,147.99,6.7568]
[1719536930302,15.37,148.02,147.99,6.7568]
[1719536932898,15.37,148.02,148.0,6.7566]
[1719536934020,0.8479656,148.03,147.98,6.7572]
[1719536934021,15.37,148.01,147.98,6.7572]
[1719536934217,15.37,148.0,147.97,23.3852]
[1719536934731,0.8479656,148.03,147.99,6.7572]
[1719536935027,7.6033656,148.03,147.98,23.6513]
[1719536936127,7.6033656,148.03,147.98,16.8938]
[1719536936128,0.8479656,148.03,147.98,16.8938]
[1719536936325,0.8479656,148.03,148.0,16.8909]
[1719536937706,0.8479656,148.03,148.0,23.6474]
[1719536938124,0.8479656,148.03,148.0,16.8909]
[1719536938328,15.37,148.02,147.97,33.5218]
[1719536938830,15.37,148.0,147.97,40.2794]
[1719536939029,15.37,148.0,147.98,6.7576]
[1719536939724,6.7559,148.02,147.98,6.7576]
[1719536939905,15.37,148.01,147.98,6.7576]
[1719536940515,7.6033656,148.03,147.95,13.2928]
[1719536940516,0.8479656,148.03,147.95,13.2928]
[1719536940813,15.37,147.97,147.94,23.6574]
[1719536941130,6.7589,147.96,147.92,15.1942]
[1719536941334,15.37,147.93,147.91,45.3953]
[1719536941508,15.37,147.98,147.91,23.2649]
[1719536941509,61.48,147.98,147.91,23.2649]
[1719536941825,15.37,147.94,147.92,6.7603]
[1719536942332,15.37,147.94,147.91,30.0256]
[1719536942534,61.48,147.98,147.88,33.192]
[1719536942535,15.37,147.92,147.88,33.192]
[1719536942722,61.48,147.98,147.89,6.7616]
[1719536942723,15.37,147.91,147.89,6.7616]
[1719536943121,15.37,147.9,147.89,6.7616]
[1719536943640,15.37,147.92,147.9,6.7612]
[1719536943815,15.37,147.95,147.9,16.9026]
[1719536944012,15.37,147.95,147.92,6.76]
[1719536944532,6.7577,147.98,147.92,6.76]
[1719536944739,6.7582,147.97,147.92,6.76]
[1719536946517,46.6029,148.0,147.92,32.9729]
[1719536946840,17.3180656,148.03,147.92,22.2002]
[1719536947811,6.7571,148.0,147.95,6.7588]
[1719536948011,17.3180656,148.03,147.96,16.896]
[1719536948222,0.8479656,148.03,147.96,16.896]
[1719536948635,0.8479656,148.03,147.99,6.7571]
[1719536949511,0.8479656,148.03,148.0,23.648]
[1719536952316,0.8479656,148.03,148.0,16.8914]
[1719536952516,0.8479656,148.03,148.0,23.6481]
[1719536955032,0.8479656,148.03,148.0,16.8914]
[1719536957925,0.8479656,148.03,148.0,45.7488]
[1719536959037,0.8479656,148.03,148.01,1.35107957]
[1719536959225,0.8479656,148.03,148.02,6.7558]
[1719536959431,0.8479656,148.03,148.02,8.10660462]
[1719536959632,0.8479656,148.03,148.02,6.7558]
[1719536963853,0.8479656,148.03,148.02,8.10657418]
[1719536965649,0.8479656,148.03,148.02,6.7558]
[1719536965831,0.8479656,148.03,148.02,8.10638283]
[1719536967766,0.8479656,148.03,148.02,28.10638283]
[1719536968333,15.9544,148.14,148.02,48.48638283]
[1719536968533,15.9544,148.14,148.07,16.8833]
[1719536968750,22.705,148.14,148.09,6.7525]
[1719536969452,6.7508,148.13,148.08,6.7529]
[1719536969661,22.7048,148.14,148.09,6.7526]
[1719536970936,15.9544,148.14,148.1,8.10225368]
[1719536971251,16.4749656,148.18,148.11,18.2286795]
[1719536971443,16.4749656,148.18,148.12,1.350015]
[1719536971647,6.7491,148.17,148.12,8.100915]
[1719536971959,23.2235656,148.18,148.13,6.7507]
[1719536972133,23.2235656,148.18,148.14,1.34989725]
[1719536972665,16.4749656,148.18,148.08,16.8826]
[1719536972962,6.7498,148.16,148.1,6.7519]
[1719536973165,6.7498,148.16,148.11,6.7516]
[1719536973463,6.7491,148.17,148.12,6.7512]
[1719536973964,16.4749656,148.18,148.13,6.7506]
[1719536974260,16.4749656,148.18,148.14,6.7501]
[1719536974645,31.8249656,148.18,148.14,6.7501]
[1719536974844,0.8479656,148.18,148.15,16.69980554]
[1719536975959,0.8479656,148.18,148.14,6.7501]
[1719536975960,7.5966656,148.18,148.13,13.0009]
[1719536976172,7.5966656,148.18,148.13,21.6002]
[1719536976173,6.749,148.17,148.13,21.6002]
[1719536976541,7.5965656,148.18,148.13,28.351]
[1719536976739,7.5965656,148.18,148.13,13.001]
[1719536979458,0.8479656,148.18,148.14,6.7502]
[1719536980165,0.8479656,148.18,148.13,6.2502]
[1719536980375,0.8479656,148.18,148.15,23.6246]
[1719536981655,0.8479656,148.18,148.16,6.7494]
[1719536981850,0.8479656,148.18,148.15,23.6242]
[1719536982048,0.8479656,148.18,148.17,6.749]
[1719536982366,0.88807334,148.33,148.17,22.9127]
[1719536982367,6.7453,148.25,148.17,22.9127]
[1719536982557,15.0236,148.29,148.18,6.7485]
[1719536982758,6.7461,148.24,148.18,23.6195]
[1719536983356,6.7461,148.24,148.19,6.7479]
[1719536983670,6.7454,148.25,148.19,6.7479]
[1719536983856,31.883,148.29,148.2,16.8684]
[1719536984050,31.883,148.29,148.2,23.6159]
[1719536985757,6.7455,148.25,148.2,23.6159]
[1719536986668,31.883,148.29,148.17,6.3416]
[1719536986669,6.746,148.24,148.19,6.748]
[1719536989377,6.7455,148.25,148.19,6.748]
[1719536989671,6.7455,148.25,148.2,6.7475]
[1719536990076,6.745,148.26,148.21,16.8671]
[1719536990277,16.8614,148.27,148.14,16.5711]
[1719536990471,6.7468,148.22,148.17,6.7489]
[1719536990678,6.7468,148.22,148.16,6.7493]
[1719536990856,6.7468,148.22,148.1,30.69]
[1719536990857,30.69,148.24,148.11,16.5711]
[1719536991054,30.69,148.24,148.15,6.7495]
[1719536991055,6.7476,148.2,148.15,6.7495]
[1719536991257,6.7472,148.21,148.16,6.7493]
[1719536992372,6.7463,148.23,148.18,6.7484]
[1719536992564,6.7464,148.23,148.18,6.7484]
[1719536992757,6.7464,148.23,148.16,16.8731]
[1719536992758,6.7468,148.22,148.16,16.8731]
[1719536992968,6.7476,148.2,148.16,16.8731]
[1719536993266,6.7476,148.2,148.15,6.7498]
[1719536993465,6.7484,148.19,148.14,6.7502]
[1719536993668,6.7477,148.2,148.15,6.7496]
[1719536994073,47.555,148.24,148.16,6.7493]
[1719536995155,6.7472,148.21,148.16,6.7493]
[1719536996786,15.34,148.19,148.16,6.7493]
[1719536997579,16.865,148.24,148.12,16.8778]
[1719536997772,15.34,148.17,148.14,6.75]
[1719536998165,15.34,148.17,148.15,6.7498]
[1719536999280,15.34,148.17,148.14,23.6257]
[1719537000370,15.6993,148.23,148.14,16.8755]
[1719537000581,6.7475,148.21,148.16,6.7493]
[1719537000883,15.34,148.17,148.14,16.8755]
[1719537001674,15.34,148.17,148.14,23.6254]
[1719537004162,15.34,148.17,148.15,6.7498]
[1719537004369,15.6993,148.23,148.16,16.8731]
[1719537004585,15.34,148.2,148.17,6.7488]
[1719537005493,15.6993,148.23,148.13,16.8762]
[1719537005669,15.34,148.17,148.15,6.7499]
[1719537005870,15.34,148.17,148.13,16.8762]
[1719537006368,22.4456,148.23,148.17,16.872]
[1719537006572,15.34,148.18,148.17,16.872]
[1719537006790,15.34,148.18,148.16,6.7494]
[1719537009475,15.34,148.18,148.15,6.7497]
[1719537010898,6.7476,148.2,148.15,6.7497]
[1719537011076,15.34,148.18,148.15,6.7497]
[1719537011272,15.6993,148.23,148.16,18.22263626]
[1719537011776,15.34,148.22,148.16,33.56263626]
[1719537011989,15.34,148.21,148.16,18.22263626]
[1719537012198,22.4455,148.23,148.18,6.7485]
[1719537012505,15.34,148.21,148.18,6.7485]
[1719537013476,15.34,148.21,148.17,6.7488]
[1719537014298,15.6993,148.23,148.18,16.8709]
[1719537014509,15.34,148.22,148.18,16.8709]
[1719537015507,15.86,148.28,148.2,16.8684]
[1719537015678,15.34,148.24,148.2,16.8684]
[1719537015880,15.34,148.24,148.21,6.7471]
[1719537016383,15.34,148.25,148.21,6.7471]
[1719537016593,15.34,148.24,148.21,6.7471]
[1719537016769,6.7453,148.26,148.21,6.7471]
[1719537017173,15.34,148.24,148.21,6.7471]
[1719537017375,6.7453,148.26,148.21,6.7471]
[1719537017790,15.34,148.25,148.22,6.7467]
[1719537018279,6.7445,148.27,148.21,6.747]
[1719537018674,15.34,148.25,148.22,6.7467]
[1719537019891,15.34,148.25,148.17,15.6119]
[1719537020090,15.34,148.23,148.19,6.748]
[1719537020484,15.34,148.22,148.18,6.7485]
[1719537020800,15.34,148.22,148.19,6.7478]
[1719537023197,6.7454,148.25,148.19,6.7478]
[1719537023497,6.7454,148.25,148.2,6.7475]
[1719537023797,15.34,148.23,148.2,6.7475]
[1719537024200,15.34,148.21,148.16,16.8733]
[1719537024397,15.34,148.21,148.17,6.7489]
[1719537025388,15.34,148.21,148.18,6.7484]
[1719537026388,15.34,148.19,148.16,23.6227]
[1719537026589,6.748,148.2,148.15,6.7497]
[1719537026778,16.5378,148.22,148.13,16.8763]
[1719537026982,15.34,148.16,148.13,16.8763]
[1719537027183,15.34,148.16,148.13,23.6268]
[1719537027401,15.34,148.16,148.14,6.7503]
[1719537027799,15.34,148.17,148.14,6.7503]
[1719537028608,15.34,148.17,148.15,6.7498]
[1719537030384,16.5378,148.22,148.16,6.7494]
[1719537030385,23.2849,148.22,148.16,6.7494]
[1719537030590,15.34,148.19,148.16,6.7494]
[1719537032614,15.34,148.19,148.15,23.6239]
[1719537036325,15.34,148.19,148.15,16.8741]
[1719537036530,22.0881,148.19,148.15,16.8741]
[1719537039732,15.34,148.18,148.15,16.8741]
[1719537039916,16.8617,148.27,148.16,1.34983719]
[1719537040114,16.8617,148.27,148.18,6.7484]
[1719537040115,15.34,148.22,148.18,6.7484]
[1719537041407,15.34,148.22,148.19,6.748]
[1719537044332,15.34,148.22,148.2,6.7476]
[1719537044840,15.34,148.23,148.2,6.7476]
[1719537046421,15.34,148.23,148.19,23.6177]
[1719537046925,15.34,148.23,148.2,6.7476]
[1719537047228,16.8584,148.3,148.22,6.7467]
[1719537047229,6.7444,148.27,148.22,6.7467]
[1719537047413,15.34,148.26,148.22,6.7467]
[1719537047833,15.34,148.26,148.23,6.7462]
[1719537048040,15.34,148.26,148.22,6.7465]
[1719537048219,22.0849,148.26,148.21,23.6141]
[1719537048420,15.34,148.25,148.21,23.6141]
[1719537049252,15.34,148.26,148.21,16.8671]
[1719537049445,15.3925,148.32,148.21,16.8671]
[1719537049645,15.34,148.26,148.21,16.8671]
[1719537049847,15.34,148.26,148.23,6.7461]
[1719537050540,15.34,148.26,148.21,16.8671]
[1719537050749,15.34,148.26,148.22,6.7466]
[1719537050947,15.34,148.25,148.22,6.7466]
[1719537052350,15.34,148.25,148.23,6.7462]
[1719537052745,15.34,148.26,148.23,6.7462]
[1719537053051,6.7441,148.28,148.23,6.7462]